[Event "24th European Women Club Cup 2019"]
[Site "Ulcinj"]
[Date "2019.11.10"]
[Round "1.26"]
[White "Bulmaga, Irina"]
[Black "Haitovich, Avital"]
[Result "1-0"]
[ECO "B20"]
[WhiteElo "2435"]
[BlackElo "1998"]
[Annotator "NA RC"]
[PlyCount "61"]
[EventDate "2019.11.10"]
[EventType "team-tourn"]
[EventCountry "MNE"]
[SourceTitle "playchess.com"]
[Source "ChessBase"]
[SourceQuality "1"]
[WhiteTeam "Novy Bor"]
[BlackTeam "Hertzeliya"]
[TimeControl "40/5400+30:1800+30"]

1. e4 {[%emt 0:00:00]} c5 {[%emt 0:00:00]} 2. Be2 {[%emt 0:00:00]} d6 {[%emt 0:01:28]} 3. f4 {[%emt 0:00:04]} Nc6 {[%emt 0:01:05]} 4. Nf3 {[%emt 0:00:08]} g6 {[%emt 0:03:47]} 5. O-O Bg7 {[%emt 0:00:08]} 6. c3 {[%emt 0:00:16]} Nf6 {[%emt 0:02:19]} 7. d3 {[%emt 0:00:08]} O-O {[%emt 0:00:37]} 8. Kh1 {[%emt 0:00:05]} Rb8 {[%emt 0:03:25]} 9. Be3 {[%emt 0:00:17]} c4 {[%emt 0:15:41]} 10. Nbd2 {[%emt 0:04:58]} cxd3 {[%emt 0:02:12]} 11. Bxd3 {[%emt 0:00:05]} b6 {[%emt 0:07:43]} 12. Qe1 {[%emt 0:03:44]} Qc7 {[%emt 0:18:30]} 13. Qh4 {[%emt 0:04:13]} Ng4 {[%emt 0:03:44]} 14. Bg1 {[%emt 0:00:57]} Bf6 {[%emt 0:10:03]} 15. Qg3 {[%emt 0:02:02]} Bg7 {[%emt 0:02:07]} 16. h3 {[%emt 0:05:22]} Nf6 {[%emt 0:01:00]} 17. Be3 {[%emt 0:01:20]} e5 18. f5 Ne7 {[%emt 0:13:09]} 19. Nh2 {[%emt 0:17:41]} d5 20. Ng4 {[%emt 0:11:35]} Nxg4 {[%emt 0:05:13]} 21. hxg4 {[%emt 0:00:36]} f6 {[%emt 0:02:29]} 22. fxg6 {[%emt 0:05:40]} hxg6 {[%emt 0:01:17]} 23. exd5 {[%emt 0:00:02]} Qd7 {[%emt 0:01:16]} 24. Bc4 {[%emt 0:02:51]} Nxd5 {[%emt 0:01:46]} 25. Rad1 {[%emt 0:00:40]} Qf7 {[%emt 0:00:07]} 26. Ne4 {[%emt 0:00:25]} Rd8 {[%emt 0:02:16]} 27. Ng5 {[%emt 0:00:30]} Qb7 {[%emt 0:00:25]} 28. Qf3 {[%emt 0:00:30]} fxg5 {[%emt 0:01:18]} 29. Rxd5 {[%emt 0:00:20]} Rf8 {[%emt 0:00:51]} 30. Qxf8+ {[%emt 0:00:20]} Bxf8 {[%emt 0:00:19]} 31. Rd7+ {[%emt 0:00:05]} 1-0

[Event "24th European Women Club Cup 2019"]
[Site "Ulcinj"]
[Date "2019.11.10"]
[Round "1.27"]
[White "Yakovleva, Tatiana"]
[Black "Hoang, Thanh Trang"]
[Result "0-1"]
[ECO "A85"]
[WhiteElo "1942"]
[BlackElo "2414"]
[Annotator "NA RC"]
[PlyCount "100"]
[EventDate "2019.11.10"]
[EventType "team-tourn"]
[EventCountry "MNE"]
[SourceTitle "playchess.com"]
[Source "ChessBase"]
[SourceQuality "1"]
[WhiteTeam "Hertzeliya"]
[BlackTeam "Novy Bor"]
[TimeControl "40/5400+30:1800+30"]

1. d4 {[%emt 0:00:00]} f5 {[%emt 0:00:00]} 2. c4 {[%emt 0:00:00]} Nf6 {[%emt 0:00:19]} 3. Nc3 {[%emt 0:00:35]} g6 {[%emt 0:00:52]} 4. e3 {[%emt 0:02:20]} Bg7 {[%emt 0:01:16]} 5. Nf3 {[%emt 0:00:49]} O-O {[%emt 0:01:34]} 6. b4 {[%emt 0:03:21]} a5 {[%emt 0:07:38]} 7. b5 {[%emt 0:02:03]} d6 {[%emt 0:00:44]} 8. Bb2 {[%emt 0:04:34]} e6 {[%emt 0:03:39]} 9. Be2 {[%emt 0:03:38]} Qe7 {[%emt 0:03:15]} 10. a4 {[%emt 0:11:59]} Nbd7 {[%emt 0:04:10]} 11. O-O {[%emt 0:02:08]} b6 {[%emt 0:02:53]} 12. Nd2 {[%emt 0:10:36]} Bb7 {[%emt 0:01:21]} 13. Bf3 {[%emt 0:01:11]} Bxf3 {[%emt 0:01:34]} 14. Nxf3 {[%emt 0:02:07]} Rad8 {[%emt 0:05:26]} 15. Qb3 {[%emt 0:10:20]} Kh8 {[%emt 0:01:38]} 16. Rac1 {[%emt 0:05:01]} Nh5 {[%emt 0:06:58]} 17. h4 {[%emt 0:11:05]} h6 {[%emt 0:05:07]} 18. Ne2 {[%emt 0:04:17]} e5 {[%emt 0:10:09]} 19. g3 {[%emt 0:00:40]} f4 {[%emt 0:03:04]} 20. g4 {[%emt 0:04:00]} Qe6 {[%emt 0:05:34]} 21. Nh2 {[%emt 0:00:48]} f3 {[%emt 0:01:13]} 22. Ng3 {[%emt 0:01:54]} Nxg3 {[%emt 0:01:57]} 23. fxg3 {[%emt 0:00:02]} e4 {[%emt 0:00:47]} 24. Qc2 {[%emt 0:04:56]} Rde8 {[%emt 0:01:49]} 25. Qd2 {[%emt 0:03:00]} Nf6 {[%emt 0:02:55]} 26. d5 {[%emt 0:00:28]} Qd7 {[%emt 0:01:41]} 27. Bxf6 {[%emt 0:00:06]} Bxf6 {[%emt 0:00:06]} 28. Kf2 {[%emt 0:00:47]} h5 {[%emt 0:01:56]} 29. Rg1 {[%emt 0:08:19]} hxg4 {[%emt 0:00:27]} 30. Nf1 {[%emt 0:00:54]} Kg7 {[%emt 0:00:15]} 31. Qc2 {[%emt 0:00:12]} Rh8 {[%emt 0:00:34]} 32. Nd2 {[%emt 0:00:22]} Qf5 {[%emt 0:00:40]} 33. Rh1 {[%emt 0:00:33]} Rh5 {[%emt 0:03:04]} 34. Rce1 {[%emt 0:00:55]} Qe5 {[%emt 0:02:17]} 35. Reg1 {[%emt 0:00:32]} Kf7 {[%emt 0:00:51]} 36. Nb3 {[%emt 0:01:10]} Reh8 {[%emt 0:02:31]} 37. Nd2 {[%emt 0:00:22]} g5 {[%emt 0:01:38]} 38. Qxe4 {[%emt 0:01:11]} gxh4 {[%emt 0:01:20]} 39. Qxe5 {[%emt 0:00:20]} Bxe5 {[%emt 0:01:06]} 40. gxh4 {[%emt 0:00:00]} Rxh4 {[%emt 0:00:00]} 41. Rxh4 Rxh4 {[%emt 0:00:33]} 42. Nf1 {[%emt 0:00:44]} Kf6 {[%emt 0:01:08]} 43. Ke1 {[%emt 0:01:13]} Kf5 {[%emt 0:01:02]} 44. Kd2 {[%emt 0:01:39]} Bh2 {[%emt 0:02:24]} 45. Nxh2 {[%emt 0:03:59]} Rxh2+ {[%emt 0:00:10]} 46. Kd3 {[%emt 0:00:17]} f2 {[%emt 0:00:38]} 47. Rf1 {[%emt 0:00:06]} g3 {[%emt 0:00:18]} 48. Ke2 {[%emt 0:00:08]} Ke4 {[%emt 0:00:14]} 49. Rd1 {[%emt 0:00:32]} f1=Q+ {[%emt 0:00:46]} 50. Kxf1 {[%emt 0:00:22]} Rh1+ {[%emt 0:00:07]} 0-1

[Event "24th European Women Club Cup 2019"]
[Site "Ulcinj"]
[Date "2019.11.10"]
[Round "1.28"]
[White "Rodshtein, Tereza"]
[Black "Lian, Marina"]
[Result "1-0"]
[ECO "C00"]
[WhiteElo "2195"]
[BlackElo "1855"]
[Annotator "NA"]
[PlyCount "67"]
[EventDate "2019.11.10"]
[EventType "team-tourn"]
[EventCountry "MNE"]
[SourceTitle "playchess.com"]
[Source "ChessBase"]
[SourceQuality "1"]
[WhiteTeam "Novy Bor"]
[BlackTeam "Hertzeliya"]
[TimeControl "40/5400+30:1800+30"]

1. e4 e6 2. d3 d5 3. Nd2 c5 4. Ngf3 Nc6 5. g3 g6 {[%emt 0:00:17]} 6. Bg2 {[%emt 0:02:43]} Bg7 {[%emt 0:00:07]} 7. O-O {[%emt 0:01:19]} Nge7 {[%emt 0:00:21]} 8. Re1 {[%emt 0:01:26]} b6 {[%emt 0:00:25]} 9. c3 {[%emt 0:07:47]} h6 {[%emt 0:07:21]} 10. Qc2 {[%emt 0:04:01]} Qc7 {[%emt 0:10:05]} 11. Nf1 {[%emt 0:09:02]} Bb7 {[%emt 0:26:30]} 12. Rb1 {[%emt 0:28:33]} a5 {[%emt 0:00:30]} 13. Be3 {[%emt 0:00:30]} e5 {[%emt 0:00:30]} 14. Bd2 {[%emt 0:00:30]} d4 {[%emt 0:00:30]} 15. cxd4 {[%emt 0:00:30]} exd4 {[%emt 0:00:30]} 16. a3 {[%emt 0:00:30]} a4 {[%emt 0:00:30]} 17. h4 {[%emt 0:00:30]} f6 {[%emt 0:00:30]} 18. N1h2 {[%emt 0:00:30]} Bc8 {[%emt 0:00:30]} 19. Bf4 {[%emt 0:00:30]} Qd8 {[%emt 0:00:30]} 20. e5 {[%emt 0:00:30]} Kf8 {[%emt 0:00:30]} 21. exf6 {[%emt 0:00:30]} Bxf6 {[%emt 0:00:30]} 22. Ne5 {[%emt 0:00:30]} Bb7 {[%emt 0:00:30]} 23. Nhg4 {[%emt 0:00:30]} Nxe5 {[%emt 0:00:30]} 24. Bxe5 {[%emt 0:00:30]} Bxe5 {[%emt 0:00:30]} 25. Bxb7 {[%emt 0:00:30]} Ra7 {[%emt 0:00:30]} 26. Nxe5 {[%emt 0:00:30]} Rxb7 {[%emt 0:00:30]} 27. Qc4 {[%emt 0:00:30]} Rh7 {[%emt 0:00:30]} 28. Qe6 {[%emt 0:00:30]} Rg7 {[%emt 0:00:30]} 29. Re4 {[%emt 0:00:30]} Qd5 {[%emt 0:00:30]} 30. Rf4+ {[%emt 0:00:30]} Ke8 {[%emt 0:00:30]} 31. Qf6 {[%emt 0:00:30]} Qg8 {[%emt 0:00:30]} 32. Re1 {[%emt 0:00:30]} g5 {[%emt 0:00:30]} 33. Rf3 {[%emt 0:00:30]} gxh4 {[%emt 0:00:30]} 34. Ng6 {[%emt 0:00:30]} 1-0

[Event "24th European Women Club Cup 2019"]
[Site "Ulcinj"]
[Date "2019.11.11"]
[Round "2.11"]
[White "Batsiashvili, Nino"]
[Black "Mammadova, Gulnar"]
[Result "1-0"]
[ECO "A42"]
[WhiteElo "2422"]
[BlackElo "2369"]
[Annotator "RC"]
[PlyCount "83"]
[EventDate "2019.11.10"]
[EventType "team-tourn"]
[EventCountry "MNE"]
[SourceTitle "playchess.com"]
[Source "ChessBase"]
[SourceQuality "1"]
[WhiteTeam "Nona"]
[BlackTeam "Odlar Yurdu"]
[TimeControl "40/5400+30:1800+30"]

1. c4 {[%emt 0:00:00]} g6 {[%emt 0:00:00]} 2. Nc3 {[%emt 0:00:00]} Bg7 {[%emt 0:00:00]} 3. d4 {[%emt 0:00:08]} d6 {[%emt 0:00:02]} 4. e4 {[%emt 0:00:51]} e5 {[%emt 0:00:20]} 5. Be3 {[%emt 0:02:27]} exd4 {[%emt 0:02:57]} 6. Bxd4 {[%emt 0:00:02]} Nf6 {[%emt 0:00:55]} 7. Nf3 {[%emt 0:11:20]} Nc6 {[%emt 0:01:43]} 8. Be3 {[%emt 0:00:06]} O-O {[%emt 0:00:50]} 9. h3 {[%emt 0:03:59]} Re8 {[%emt 0:03:36]} 10. Bd3 {[%emt 0:00:13]} Nb4 {[%emt 0:05:19]} 11. Bb1 {[%emt 0:03:55]} b6 {[%emt 0:03:23]} 12. O-O {[%emt 0:05:08]} Bb7 {[%emt 0:02:44]} 13. Nd2 {[%emt 0:13:06]} a5 {[%emt 0:02:08]} 14. Re1 {[%emt 0:01:51]} Na6 {[%emt 0:03:06]} 15. Bg5 {[%emt 0:05:56]} Qd7 {[%emt 0:05:49]} 16. Bc2 {[%emt 0:06:02]} Nc5 {[%emt 0:08:31]} 17. Qf3 {[%emt 0:00:27]} Re6 {[%emt 0:01:45]} 18. Nd5 {[%emt 0:01:03]} Nxd5 {[%emt 0:01:02]} 19. cxd5 {[%emt 0:02:12]} Ree8 {[%emt 0:03:52]} 20. Bf6 {[%emt 0:01:02]} Bxf6 {[%emt 0:02:05]} 21. Qxf6 {[%emt 0:00:01]} Qe7 {[%emt 0:00:18]} 22. Qd4 {[%emt 0:01:52]} Qe5 {[%emt 0:02:56]} 23. Nf3 {[%emt 0:00:58]} Qxd4 {[%emt 0:00:45]} 24. Nxd4 {[%emt 0:00:01]} Re7 {[%emt 0:01:29]} 25. f3 {[%emt 0:01:17]} Rae8 {[%emt 0:05:37]} 26. Kf2 {[%emt 0:00:19]} h5 {[%emt 0:07:04]} 27. h4 {[%emt 0:01:36]} Kg7 {[%emt 0:01:51]} 28. Red1 {[%emt 0:02:07]} Ra8 {[%emt 0:01:48]} 29. b3 {[%emt 0:00:32]} Bc8 {[%emt 0:08:30]} 30. a3 {[%emt 0:01:31]} Bd7 {[%emt 0:01:17]} 31. b4 {[%emt 0:05:23]} Nb7 {[%emt 0:01:19]} 32. Rdc1 {[%emt 0:03:08]} Nd8 33. Bd3 {[%emt 0:02:46]} Be8 {[%emt 0:08:40]} 34. Bb5 {[%emt 0:05:06]} Bxb5 {[%emt 0:04:13]} 35. Nxb5 {[%emt 0:00:03]} axb4 {[%emt 0:00:11]} 36. axb4 {[%emt 0:04:02]} Rxa1 {[%emt 0:00:13]} 37. Rxa1 {[%emt 0:00:02]} c6 {[%emt 0:00:29]} 38. Nxd6 {[%emt 0:06:12]} cxd5 {[%emt 0:00:06]} 39. Ra8 {[%emt 0:00:26]} Rd7 {[%emt 0:05:34]} 40. Ne8+ {[%emt 0:00:00]} Kh6 {[%emt 0:00:00]} 41. Nf6 {[%emt 0:02:13]} Rd6 {[%emt 0:01:38]} 42. e5 {[%emt 0:00:13]} 1-0

[Event "24th European Women Club Cup 2019"]
[Site "Ulcinj"]
[Date "2019.11.11"]
[Round "2.24"]
[White "Vardi, Shlomit"]
[Black "Blagojevic, Tijana"]
[Result "0-1"]
[ECO "B23"]
[WhiteElo "1935"]
[BlackElo "2169"]
[Annotator "NA"]
[PlyCount "86"]
[EventDate "2019.11.10"]
[EventType "team-tourn"]
[EventCountry "MNE"]
[SourceTitle "playchess.com"]
[Source "ChessBase"]
[SourceQuality "1"]
[WhiteTeam "Rishon Lezion"]
[BlackTeam "Jelica PEP"]
[TimeControl "40/5400+30:1800+30"]

1. e4 {[%emt 0:00:00]} c5 {[%emt 0:00:00]} 2. Nc3 {[%emt 0:00:00]} d6 {[%emt 0:00:00]} 3. d4 {[%emt 0:00:00]} cxd4 {[%emt 0:00:00]} 4. Qxd4 {[%emt 0:00:04]} Nc6 {[%emt 0:00:00]} 5. Bb5 {[%emt 0:00:37]} Bd7 {[%emt 0:00:09]} 6. Bxc6 {[%emt 0:00:33]} Bxc6 {[%emt 0:00:06]} 7. Nf3 {[%emt 0:04:48]} h6 {[%emt 0:06:03]} 8. Be3 {[%emt 0:04:08]} e5 {[%emt 0:00:26]} 9. Qd3 {[%emt 0:00:59]} Nf6 {[%emt 0:00:27]} 10. O-O {[%emt 0:03:28]} Be7 {[%emt 0:00:28]} 11. Rad1 {[%emt 0:01:46]} a6 {[%emt 0:04:42]} 12. a4 {[%emt 0:10:23]} O-O {[%emt 0:00:28]} 13. b4 {[%emt 0:11:25]} Rc8 {[%emt 0:09:35]} 14. b5 {[%emt 0:15:45]} Bd7 {[%emt 0:01:26]} 15. Nd5 {[%emt 0:04:44]} Nxd5 {[%emt 0:00:48]} 16. Qxd5 {[%emt 0:00:16]} Qc7 {[%emt 0:04:07]} 17. Rc1 {[%emt 0:06:24]} Be6 {[%emt 0:02:07]} 18. Qd2 {[%emt 0:04:06]} Qc4 {[%emt 0:08:50]} 19. bxa6 {[%emt 0:04:56]} bxa6 {[%emt 0:00:18]} 20. Rfe1 {[%emt 0:00:38]} Kh7 {[%emt 0:01:04]} 21. a5 {[%emt 0:01:17]} f5 {[%emt 0:03:37]} 22. exf5 {[%emt 0:02:32]} Bxf5 {[%emt 0:00:27]} 23. Re2 {[%emt 0:03:38]} Bg4 {[%emt 0:03:24]} 24. Ree1 {[%emt 0:00:24]} Qc6 {[%emt 0:03:24]} 25. Bb6 {[%emt 0:08:25]} Bxf3 {[%emt 0:09:42]} 26. gxf3 {[%emt 0:00:05]} Rxf3 {[%emt 0:00:52]} 27. c4 {[%emt 0:02:34]} Rf4 {[%emt 0:05:08]} 28. Qd5 {[%emt 0:07:10]} Rg4+ {[%emt 0:02:26]} 29. Kf1 {[%emt 0:00:29]} Rxc4 {[%emt 0:02:53]} 30. Rcd1 {[%emt 0:01:16]} Qe8 {[%emt 0:03:35]} 31. Re3 {[%emt 0:01:12]} Qh5 {[%emt 0:02:41]} 32. Qd3+ {[%emt 0:01:07]} Kh8 {[%emt 0:00:24]} 33. h3 {[%emt 0:00:27]} Bg5 {[%emt 0:03:15]} 34. Rg3 {[%emt 0:00:31]} Bf4 {[%emt 0:02:39]} 35. Rg4 {[%emt 0:00:12]} Rc3 {[%emt 0:00:40]} 36. Qg6 {[%emt 0:00:34]} Qxh3+ {[%emt 0:01:16]} 37. Rg2 {[%emt 0:00:18]} Bg5 {[%emt 0:00:33]} 38. Qxd6 {[%emt 0:00:38]} Rc1 {[%emt 0:01:38]} 39. Rxc1 {[%emt 0:00:45]} Rxc1+ {[%emt 0:00:44]} 40. Ke2 {[%emt 0:00:00]} Rc2+ {[%emt 0:00:00]} 41. Kd1 {[%emt 0:00:05]} Rd2+ {[%emt 0:04:43]} 42. Qxd2 {[%emt 0:00:13]} Bxd2 {[%emt 0:00:06]} 43. Rg3 {[%emt 0:00:14]} Qd7 {[%emt 0:00:09]} 0-1

[Event "24th European Women Club Cup 2019"]
[Site "Ulcinj"]
[Date "2019.11.12"]
[Round "3.2"]
[White "Muzychuk, Anna"]
[Black "Cramling, Pia"]
[Result "1/2-1/2"]
[ECO "B52"]
[WhiteElo "2543"]
[BlackElo "2443"]
[Annotator "ChessBase"]
[PlyCount "81"]
[EventDate "2019.11.10"]
[EventType "team-tourn"]
[EventCountry "MNE"]
[SourceTitle "playchess.com"]
[Source "ChessBase"]
[SourceQuality "1"]
[WhiteTeam "Kyiv"]
[BlackTeam "Cercle d`Echecs"]
[TimeControl "40/5400+30:1800+30"]

1. e4 {[%emt 0:00:00]} c5 {[%emt 0:00:00]} 2. Nf3 {[%emt 0:00:00]} d6 {[%emt 0:00:00]} 3. Bb5+ {[%emt 0:00:00]} Bd7 {[%emt 0:00:00]} 4. Bxd7+ {[%emt 0:00:38]} Nxd7 {[%emt 0:00:20]} 5. O-O {[%emt 0:01:01]} Ngf6 {[%emt 0:00:25]} 6. Qe2 {[%emt 0:00:29]} Rc8 {[%emt 0:01:59]} 7. b3 {[%emt 0:02:07]} g6 {[%emt 0:00:39]} 8. Bb2 {[%emt 0:00:48]} Bg7 {[%emt 0:00:13]} 9. d4 {[%emt 0:02:13]} cxd4 {[%emt 0:00:48]} 10. Nxd4 {[%emt 0:00:07]} Nc5 {[%emt 0:04:43]} 11. f3 {[%emt 0:05:09]} Qb6 {[%emt 0:13:04]} 12. Qb5+ {[%emt 0:06:05]} Qxb5 {[%emt 0:02:31]} 13. Nxb5 {[%emt 0:00:01]} a6 {[%emt 0:01:01]} 14. N5a3 {[%emt 0:01:03]} b5 {[%emt 0:10:21]} 15. Nd2 {[%emt 0:02:01]} O-O {[%emt 0:01:20]} 16. Rad1 {[%emt 0:08:10]} Rb8 {[%emt 0:07:57]} 17. Ba1 {[%emt 0:06:03]} Rfc8 {[%emt 0:03:12]} 18. c4 {[%emt 0:01:18]} Nfd7 {[%emt 0:06:37]} 19. Bxg7 {[%emt 0:02:00]} Kxg7 {[%emt 0:00:03]} 20. Nc2 {[%emt 0:03:18]} Ne5 {[%emt 0:01:35]} 21. Ne3 {[%emt 0:04:10]} Kf8 {[%emt 0:00:25]} 22. Rb1 {[%emt 0:02:06]} Ne6 {[%emt 0:11:10]} 23. Rfc1 {[%emt 0:03:43]} Nd4 {[%emt 0:02:22]} 24. Kf1 {[%emt 0:01:48]} b4 {[%emt 0:07:12]} 25. Nc2 {[%emt 0:02:02]} Ne6 {[%emt 0:00:40]} 26. g3 {[%emt 0:04:27]} Nd3 {[%emt 0:02:13]} 27. Rd1 {[%emt 0:00:06]} Ndc5 {[%emt 0:00:24]} 28. Ke2 {[%emt 0:01:28]} a5 {[%emt 0:01:34]} 29. Nf1 {[%emt 0:03:43]} Nd7 {[%emt 0:04:54]} 30. Nfe3 {[%emt 0:01:06]} Rb7 {[%emt 0:01:04]} 31. Nd5 {[%emt 0:02:26]} Ndc5 {[%emt 0:01:06]} 32. Rb2 {[%emt 0:03:27]} Ra8 {[%emt 0:01:42]} 33. Ra1 {[%emt 0:05:31]} Nd8 {[%emt 0:05:54]} 34. Nd4 {[%emt 0:02:44]} e6 {[%emt 0:00:44]} 35. Nf6 {[%emt 0:07:04]} h5 {[%emt 0:00:32]} 36. Nb5 {[%emt 0:00:04]} Rb6 {[%emt 0:01:23]} 37. a3 {[%emt 0:05:07]} bxa3 {[%emt 0:01:16]} 38. Rxa3 {[%emt 0:00:01]} Ke7 {[%emt 0:01:13]} 39. Ng8+ {[%emt 0:00:40]} Kf8 {[%emt 0:00:08]} 40. Nf6 {[%emt 0:00:00]} Ke7 {[%emt 0:00:00]} 41. Ng8+ {[%emt 0:01:54]} 1/2-1/2

[Event "24th European Women Club Cup 2019"]
[Site "Ulcinj"]
[Date "2019.11.12"]
[Round "3.3"]
[White "Socko, Monika"]
[Black "Abdumalik, Zhansaya"]
[Result "1/2-1/2"]
[ECO "D70"]
[WhiteElo "2417"]
[BlackElo "2472"]
[Annotator "ChessBase"]
[PlyCount "151"]
[EventDate "2019.11.10"]
[EventType "team-tourn"]
[EventCountry "MNE"]
[SourceTitle "playchess.com"]
[Source "ChessBase"]
[SourceQuality "1"]
[WhiteTeam "Cercle d`Echecs"]
[BlackTeam "Kyiv"]
[TimeControl "40/5400+30:1800+30"]

1. d4 {[%emt 0:00:00]} Nf6 {[%emt 0:00:00]} 2. c4 {[%emt 0:00:00]} g6 {[%emt 0:00:00]} 3. Nf3 {[%emt 0:00:00]} Bg7 {[%emt 0:00:32]} 4. g3 {[%emt 0:00:00]} O-O {[%emt 0:00:58]} 5. Bg2 {[%emt 0:00:00]} c5 {[%emt 0:00:13]} 6. d5 {[%emt 0:00:00]} e6 {[%emt 0:00:39]} 7. dxe6 {[%emt 0:00:05]} dxe6 {[%emt 0:05:00]} 8. Qxd8 {[%emt 0:00:05]} Rxd8 {[%emt 0:00:06]} 9. Nc3 {[%emt 0:00:12]} Nc6 {[%emt 0:01:55]} 10. O-O {[%emt 0:00:05]} Na5 {[%emt 0:06:17]} 11. Ne5 {[%emt 0:00:12]} Ne8 {[%emt 0:11:50]} 12. Bf4 {[%emt 0:00:08]} Bd7 {[%emt 0:11:33]} 13. Nxd7 {[%emt 0:13:52]} Rxd7 {[%emt 0:00:06]} 14. Na4 {[%emt 0:02:22]} Rc8 {[%emt 0:05:28]} 15. Rad1 {[%emt 0:03:33]} Rd4 {[%emt 0:02:03]} 16. Nxc5 {[%emt 0:13:11]} Nxc4 {[%emt 0:08:18]} 17. b4 {[%emt 0:08:44]} b6 {[%emt 0:03:59]} 18. Nb3 {[%emt 0:11:30]} Rxd1 {[%emt 0:00:14]} 19. Rxd1 {[%emt 0:00:02]} Bf6 {[%emt 0:02:47]} 20. Bb7 {[%emt 0:11:12]} Rd8 {[%emt 0:00:10]} 21. Rxd8 {[%emt 0:00:04]} Bxd8 {[%emt 0:00:05]} 22. a4 {[%emt 0:01:17]} a5 {[%emt 0:03:14]} 23. bxa5 {[%emt 0:01:28]} bxa5 {[%emt 0:01:34]} 24. Bc6 {[%emt 0:00:31]} Ned6 {[%emt 0:02:00]} 25. Nd2 {[%emt 0:01:24]} g5 {[%emt 0:01:19]} 26. Nxc4 {[%emt 0:01:34]} Nxc4 {[%emt 0:00:06]} 27. Bc1 {[%emt 0:00:21]} f6 {[%emt 0:02:35]} 28. Kg2 {[%emt 0:01:06]} Kf7 {[%emt 0:00:24]} 29. Bb5 {[%emt 0:00:07]} Nd6 {[%emt 0:00:50]} 30. Bd3 {[%emt 0:00:05]} h6 {[%emt 0:01:51]} 31. f4 {[%emt 0:02:12]} f5 {[%emt 0:09:20]} 32. h3 {[%emt 0:01:06]} Nb7 {[%emt 0:03:54]} 33. Kf3 {[%emt 0:02:10]} Nc5 {[%emt 0:03:50]} 34. Bc2 {[%emt 0:00:06]} Kf6 {[%emt 0:05:23]} 35. Be3 {[%emt 0:07:57]} Bb6 {[%emt 0:00:49]} 36. g4 {[%emt 0:01:52]} Kg6 {[%emt 0:03:21]} 37. Bd2 {[%emt 0:03:49]} Bc7 {[%emt 0:01:10]} 38. e3 {[%emt 0:02:21]} Nd7 {[%emt 0:01:19]} 39. Be1 {[%emt 0:02:07]} h5 {[%emt 0:00:42]} 40. Bd2 {[%emt 0:00:00]} hxg4+ {[%emt 0:00:00]} 41. hxg4 {[%emt 0:05:01]} Nf6 {[%emt 0:05:33]} 42. gxf5+ {[%emt 0:06:13]} exf5 {[%emt 0:00:05]} 43. fxg5 {[%emt 0:02:07]} Kxg5 {[%emt 0:00:38]} 44. e4+ {[%emt 0:01:11]} f4 {[%emt 0:00:16]} 45. e5 {[%emt 0:00:15]} Bxe5 {[%emt 0:01:09]} 46. Bxa5 {[%emt 0:00:07]} Nd7 {[%emt 0:02:40]} 47. Bd2 {[%emt 0:01:35]} Bc7 {[%emt 0:02:12]} 48. Ke4 {[%emt 0:04:19]} Nc5+ {[%emt 0:00:13]} 49. Kd5 {[%emt 0:00:44]} Nxa4 {[%emt 0:00:04]} 50. Bxa4 {[%emt 0:00:03]} Bb8 {[%emt 0:00:27]} 51. Bd7 {[%emt 0:00:30]} Bc7 {[%emt 0:00:56]} 52. Ke4 {[%emt 0:00:15]} Kf6 {[%emt 0:00:18]} 53. Bc3+ {[%emt 0:00:05]} Kg5 {[%emt 0:00:22]} 54. Bc8 {[%emt 0:00:13]} Kg6 {[%emt 0:00:24]} 55. Bb4 {[%emt 0:00:16]} Kf6 {[%emt 0:00:07]} 56. Be1 {[%emt 0:00:12]} Kg5 {[%emt 0:00:10]} 57. Bf2 {[%emt 0:00:04]} Bb8 {[%emt 0:00:31]} 58. Bb6 {[%emt 0:00:05]} Bd6 {[%emt 0:00:36]} 59. Bd8+ {[%emt 0:00:07]} Kg6 {[%emt 0:00:03]} 60. Bg4 {[%emt 0:00:42]} Bb8 {[%emt 0:00:09]} 61. Kd5 {[%emt 0:00:14]} f3 {[%emt 0:00:51]} 62. Bxf3 {[%emt 0:00:10]} Kf5 {[%emt 0:00:03]} 63. Be4+ {[%emt 0:00:21]} Kf4 {[%emt 0:00:08]} 64. Bb6 {[%emt 0:00:06]} Kg3 {[%emt 0:00:21]} 65. Bg6 {[%emt 0:00:33]} Bf4 {[%emt 0:00:09]} 66. Ke4 {[%emt 0:00:05]} Bb8 {[%emt 0:00:08]} 67. Ba5 {[%emt 0:00:10]} Bd6 {[%emt 0:00:08]} 68. Be1+ {[%emt 0:00:06]} Kg2 {[%emt 0:00:16]} 69. Bh5 {[%emt 0:00:08]} Bc7 {[%emt 0:00:28]} 70. Ke3 {[%emt 0:00:18]} Bd6 {[%emt 0:00:07]} 71. Bf3+ {[%emt 0:00:18]} Kh2 {[%emt 0:00:14]} 72. Ke2 {[%emt 0:00:38]} Bc7 {[%emt 0:00:21]} 73. Bf2 {[%emt 0:00:04]} Bd6 {[%emt 0:00:55]} 74. Bg4 {[%emt 0:01:33]} Bc7 {[%emt 0:00:24]} 75. Kf3 {[%emt 0:00:04]} Bd6 {[%emt 0:00:25]} 76. Ke4 1/2-1/2